fUST/lending_fUST_20260111
["ID","MTS","AMOUNT","RATE_DAILY","PERIOD"]
[401304048,1768120239803,-500.0,0.00010137,2]
[401304049,1768120239813,-2601.0,0.00010137,2]
[401304050,1768120239822,-500.0,0.00010137,2]
[401304051,1768120239832,-500.0,0.00010137,2]
[401304052,1768120239841,-250.0,0.00010206,2]
[401304053,1768120239851,-500.0,0.00010274,2]
[401304054,1768120239867,-2601.0,0.00010274,2]
[401304055,1768120239876,-537.35985221,0.00010274,2]
[401304056,1768120239888,-823.0,0.00010279,2]
[401304057,1768120239898,-500.0,0.00010411,2]
[401304058,1768120239908,-2601.0,0.00010411,2]
[401304059,1768120239918,-500.0,0.00010411,2]
[401304060,1768120239927,-500.0,0.00010548,2]
[401304061,1768120239936,-2601.0,0.00010548,2]
[401304062,1768120239946,-578.7,0.000106,2]
[401304063,1768120239956,-175.84,0.000106,2]
[401304064,1768120239965,-500.0,0.00010685,2]
[401304065,1768120239975,-2601.0,0.00010685,2]
[401304066,1768120239984,-500.0,0.00010685,2]
[401304067,1768120239994,-1000.0,0.00010801,2]
[401304068,1768120240003,-500.0,0.00010822,2]
[401304069,1768120240013,-2601.0,0.00010822,2]
[401304070,1768120240022,-500.0,0.00010959,2]
[401304071,1768120240032,-2601.0,0.00010959,2]
[401304072,1768120240041,-500.0,0.00010959,2]
[401304073,1768120240051,-151.0,0.00011,2]
[401304074,1768120240060,-151.0,0.00011,2]
[401304075,1768120240069,-623.15407208,0.00011096,2]
[401304076,1768120240079,-2601.0,0.00011096,2]
[401304077,1768120240089,-151.0,0.000111,2]
[401304078,1768120240098,-578.7,0.000112,2]
[401304079,1768120240108,-175.84,0.000112,2]
[401304081,1768120240117,-2601.0,0.00011233,2]
[401304083,1768120240127,-500.0,0.00011233,2]
[401304085,1768120240136,-151.0,0.000113,2]
[401304087,1768120240146,-1152.0,0.00011307,2]
[401304089,1768120240155,-2601.0,0.0001137,2]
[401304091,1768120240164,-151.0,0.000114,2]
[401304093,1768120240174,-151.0,0.000114,2]
[401304095,1768120240183,-151.0,0.000115,2]
[401304097,1768120240192,-2601.0,0.00011507,2]
[401304099,1768120240202,-500.0,0.00011507,2]
[401304101,1768120240216,-2601.0,0.00011644,2]
[401304103,1768120240226,-585.6360617,0.00011648,2]
[401304105,1768120240236,-151.0,0.000117,2]
[401304107,1768120240245,-151.0,0.000117,2]
[401304110,1768120240255,-578.7,0.000117,2]
[401304112,1768120240265,-175.84,0.000117,2]
[401304114,1768120240275,-2601.0,0.00011781,2]
[401304116,1768120240285,-384.00760187,0.00011781,2]
[401304118,1768120240295,-151.0,0.000118,2]
[401304120,1768120240304,-1000.0,0.00011881,2]
[401304122,1768120240317,-244.0,0.00011881,2]
[401304124,1768120240326,-151.0,0.000119,2]
[401304126,1768120240337,-2601.0,0.00011918,2]
[401304128,1768120240347,-3588.20550987,0.00011973,2]
[401304130,1768120240357,-2601.0,0.00012055,2]
[401304132,1768120240366,-500.0,0.00012055,2]
[401304134,1768120240376,-176.23516734,0.00012055,2]
[401304136,1768120240385,-500.0,0.00012055,2]
[401304138,1768120240394,-500.0,0.00012055,2]
[401304140,1768120240403,-500.0,0.00012055,2]
[401304142,1768120240413,-171.65605742,0.00012055,2]
[401304144,1768120240422,-500.0,0.00012055,2]
[401304146,1768120240432,-500.0,0.00012055,2]
[401304148,1768120240441,-500.0,0.00012055,2]
[401304150,1768120240451,-500.0,0.00012055,2]
[401304152,1768120240461,-500.0,0.00012055,2]
[401304154,1768120240470,-154.30171575,0.00012055,2]
[401304156,1768120240480,-151.0,0.000121,2]
[401304158,1768120240491,-151.0,0.000121,2]
[401304160,1768120240501,-2601.0,0.00012192,2]
[401304162,1768120240509,-500.0,0.00012192,2]
[401304164,1768120240519,-503.05659276,0.00012192,2]
[401304166,1768120240528,-598.52490689,0.00012192,2]
[401304168,1768120240538,-500.0,0.00012192,2]
[401304170,1768120240546,-500.0,0.00012192,2]
[401304172,1768120240556,-500.0,0.00012192,2]
[401304174,1768120240565,-500.0,0.00012192,2]
[401304176,1768120240574,-500.0,0.00012192,2]
[401304178,1768120240583,-500.0,0.00012192,2]
[401304180,1768120240593,-201.95802809,0.00012192,2]
[401304182,1768120240604,-151.0,0.000122,2]
[401304184,1768120240615,-578.7,0.000122,2]
[401304186,1768120240624,-175.84,0.000122,2]
[401304188,1768120240634,-3371.69773068,0.00012305,2]
[401304190,1768120240644,-2601.0,0.00012329,2]
[401304192,1768120240654,-440.65,0.00012329,2]
[401304194,1768120240663,-367.21,0.00012329,2]
[401304196,1768120240672,-306.0,0.00012329,2]
[401304198,1768120240683,-255.0,0.00012329,2]
[401304200,1768120240693,-212.5,0.00012329,2]
[401304202,1768120240702,-177.09,0.00012329,2]
[401304204,1768120240711,-885.46,0.00012329,2]
[401304206,1768120240721,-179.07075974,0.00012329,2]
[401304208,1768120240730,-500.0,0.00012329,2]
[401304210,1768120240740,-500.0,0.00012329,2]
[401304212,1768120240750,-223.56062369,0.00012329,2]
[401304214,1768120240760,-500.0,0.00012329,2]
[401304216,1768120240769,-500.0,0.00012329,2]
[401304218,1768120240779,-500.0,0.00012329,2]
[401304220,1768120240788,-500.0,0.00012329,2]
[401304222,1768120240798,-500.0,0.00012329,2]
[401304224,1768120240807,-500.0,0.00012329,2]
[401304226,1768120240817,-500.0,0.00012329,2]
[401304228,1768120240827,-550.0,0.00012329,2]
[401304230,1768120240836,-500.0,0.00012329,2]
[401304232,1768120240846,-500.0,0.00012329,2]
[401304234,1768120240855,-500.0,0.00012329,2]
[401304236,1768120240865,-500.0,0.00012329,2]
[401304238,1768120240875,-151.0,0.000124,2]
[401304240,1768120240885,-1450.0,0.00012438,2]
[401304242,1768120240896,-2601.0,0.00012466,2]
[401304244,1768120240905,-500.0,0.00012466,2]
[401304247,1768120240915,-500.0,0.00012466,2]
[401304249,1768120240925,-500.0,0.00012466,2]
[401304250,1768120240935,-300.0,0.00012466,2]
[401304252,1768120240944,-500.0,0.00012466,2]
[401304254,1768120240955,-250.0,0.00012466,2]
[401304256,1768120240964,-3521.30514597,0.000125,2]
[401304258,1768120240974,-2601.0,0.00012603,2]
[401304260,1768120240983,-483.81749546,0.00012603,2]
[401304262,1768120240996,-263.97622948,0.00012603,2]
[401304264,1768120241006,-500.0,0.00012603,2]
[401304266,1768120241016,-264.95729538,0.00012603,2]
[401304268,1768120241025,-500.0,0.00012603,2]
[401304270,1768120241034,-500.0,0.00012603,2]
[401304272,1768120241044,-578.7,0.000127,2]
[401304274,1768120241053,-175.84,0.000127,2]
[401304276,1768120241063,-2601.0,0.0001274,2]
[401304278,1768120241072,-500.0,0.0001274,2]
[401304280,1768120241081,-500.0,0.0001274,2]
[401304282,1768120241091,-500.0,0.0001274,2]
[401304284,1768120241100,-151.0,0.000128,2]
[401304286,1768120241110,-2603.82893305,0.00012877,2]
[401304288,1768120241120,-500.0,0.00012877,2]
[401304302,1768120241237,-500.00000003,0.00012877,2]
[401304304,1768120241248,-500.0,0.00012877,2]
[401304306,1768120241259,-12757.2354021,0.000129,2]
[401304308,1768120241268,-12757.23540207,0.000129,2]
[401304310,1768120241278,-9567.92655157,0.000129,2]
[401304311,1768120241287,-9567.92655155,0.000129,2]
[401304313,1768120241296,-500.0,0.00013014,2]
[401304315,1768120241306,-500.0,0.00013014,2]
[401304316,1768120241319,-1000.0,0.00013069,2]
[401304317,1768120241329,-492.0,0.00013069,2]
[401304319,1768120241339,-151.0,0.000131,2]
[401304321,1768120241348,-500.0,0.00013151,2]
[401304323,1768120241359,-500.0,0.00013151,2]
[401304324,1768120241368,-578.7,0.000132,2]
[401304326,1768120241377,-175.84,0.000132,2]
[401304327,1768120241388,-500.0,0.00013273,2]
[401304329,1768120241398,-500.0,0.00013273,2]
[401304331,1768120241408,-500.0,0.00013273,2]
[401304332,1768120241417,-500.0,0.00013273,2]
[401304334,1768120241426,-500.0,0.00013273,2]
[401304336,1768120241435,-500.0,0.00013273,2]
[401304337,1768120241445,-500.0,0.00013273,2]
[401304338,1768120241455,-500.0,0.00013273,2]
[401304339,1768120241464,-500.0,0.00013273,2]
[401304340,1768120241473,-500.0,0.00013273,2]
[401304341,1768120241483,-500.0,0.00013273,2]
[401304342,1768120241494,-500.0,0.00013273,2]
[401304343,1768120241504,-500.0,0.00013273,2]
[401304344,1768120241513,-500.0,0.00013273,2]
[401304345,1768120241523,-500.24269708,0.00013273,2]
[401304346,1768120241532,-500.0,0.00013273,2]
[401304347,1768120241542,-500.0,0.00013273,2]
[401304348,1768120241551,-500.0,0.00013273,2]
[401304349,1768120241561,-500.0,0.00013273,2]
[401304350,1768120241571,-500.0,0.00013273,2]
[401304351,1768120241581,-500.0,0.00013273,2]
[401304352,1768120241591,-500.0,0.00013273,2]
[401304353,1768120241600,-501.02698451,0.00013273,2]
[401304354,1768120241609,-500.0,0.00013273,2]
[401304355,1768120241620,-500.0,0.00013273,2]
[401304356,1768120241630,-500.0,0.00013273,2]
[401304357,1768120241640,-500.0,0.00013273,2]
[401304358,1768120241649,-500.0,0.00013273,2]
[401304359,1768120241659,-500.0,0.00013273,2]
[401304360,1768120241669,-500.0,0.00013273,2]
[401304361,1768120241679,-500.0,0.00013273,2]
[401304362,1768120241689,-500.0,0.00013273,2]
[401304363,1768120241701,-630.69173533,0.00013273,2]
[401304364,1768120241711,-500.0,0.00013273,2]
[401304365,1768120241721,-500.0,0.00013273,2]
[401304366,1768120241731,-500.0,0.00013273,2]
[401304367,1768120241741,-501.21467235,0.00013273,2]
[401304368,1768120241750,-495.22027723,0.00013273,2]
[401304369,1768120241760,-500.0,0.00013273,2]
[401304370,1768120241770,-500.0,0.00013273,2]
[401304371,1768120241780,-206.51680322,0.00013273,2]
[401304372,1768120241791,-500.0,0.00013273,2]
[401304373,1768120241802,-500.0,0.00013273,2]
[401304374,1768120241813,-500.0,0.00013273,2]
[401304375,1768120241824,-500.0,0.00013273,2]
[401304376,1768120241833,-500.29461734,0.00013273,2]
[401304377,1768120241843,-500.0,0.00013273,2]
[401304378,1768120241853,-500.0,0.00013273,2]
[401304379,1768120241862,-402.502339,0.00013273,2]
[401304380,1768120241872,-500.0,0.00013273,2]
[401304381,1768120241881,-500.0,0.00013288,2]
[401304382,1768120241892,-500.0,0.00013288,2]
[401304383,1768120241901,-620.9785477,0.00013425,2]
[401304384,1768120241911,-500.0,0.00013425,2]
[401304385,1768120241921,-151.0,0.000135,2]
[401304386,1768120241931,-500.0,0.00013562,2]
[401304387,1768120241942,-608.91820287,0.00013588,2]
[401304388,1768120241953,-663.14671692,0.00013648,2]
[401304389,1768120241962,-300.0,0.00013673,2]
[401304390,1768120241971,-500.0,0.00013698,2]
[401304391,1768120241980,-500.0,0.00013698,2]
[401304392,1768120241991,-500.0,0.00013698,2]
[401304393,1768120242002,-500.0,0.00013698,2]
[401304394,1768120242012,-500.0,0.00013698,2]
[401304395,1768120242022,-500.0,0.00013698,2]
[401304396,1768120242032,-500.0,0.00013698,2]
[401304397,1768120242043,-534.57834013,0.00013698,2]
[401304398,1768120242054,-1000.0,0.00013698,2]
[401304399,1768120242064,-1000.0,0.00013698,2]
[401304400,1768120242074,-1000.0,0.00013698,2]
[401304401,1768120242084,-1000.0,0.00013698,2]
[401304402,1768120242095,-1000.0,0.00013698,2]
[401304403,1768120242104,-1000.0,0.00013698,2]
[401304404,1768120242114,-593.71236514,0.00013698,2]
[401304405,1768120242123,-500.0,0.00013698,2]
[401304406,1768120242132,-500.0,0.00013698,2]
[401304407,1768120242142,-500.0,0.00013698,2]
[401304408,1768120242152,-500.0,0.00013698,2]
[401304409,1768120242162,-500.0,0.00013698,2]
[401304410,1768120242171,-500.0,0.00013698,2]
[401304411,1768120242182,-500.0,0.00013698,2]
[401304412,1768120242202,-374.07409846,0.00013698,2]
[401304413,1768120242224,-500.0,0.00013698,2]
[401304414,1768120242234,-500.0,0.00013698,2]
[401304415,1768120242244,-500.0,0.00013698,2]
[401304416,1768120242254,-500.0,0.00013698,2]
[401304417,1768120242264,-500.0,0.00013698,2]
[401304418,1768120242273,-500.0,0.00013698,2]
[401304419,1768120242282,-500.0,0.00013698,2]
[401304420,1768120242292,-500.0,0.00013698,2]
[401304421,1768120242302,-239.37126777,0.00013698,2]
[401304422,1768120242316,-150.1,0.00013699,2]
[401304423,1768120242327,-500.0,0.00013699,2]
[401304424,1768120242336,-252.81793801,0.00013699,2]
[401304425,1768120242346,-500.0,0.00013699,2]
[401304426,1768120242355,-500.0,0.00013699,2]
[401304427,1768120242365,-500.0,0.00013699,2]
[401304428,1768120242376,-159.05967354,0.00013699,2]
[401304429,1768120242386,-500.0,0.00013699,2]
[401304430,1768120242395,-252.75899042,0.00013699,2]
[401304431,1768120242405,-500.0,0.00013699,2]
[401304432,1768120242415,-192.77974704,0.00013699,2]
[401304433,1768120242424,-500.0,0.00013699,2]
[401304434,1768120242434,-500.0,0.00013699,2]
[401304435,1768120242443,-500.0,0.00013699,2]
[401304436,1768120242453,-500.0,0.00013699,2]
[401304437,1768120242462,-500.0,0.00013699,2]
[401304438,1768120242472,-500.0,0.00013699,2]
[401304439,1768120242482,-500.0,0.00013699,2]
[401304440,1768120242491,-500.0,0.00013699,2]
[401304441,1768120242501,-500.0,0.00013699,2]
[401304442,1768120242511,-611.85295008,0.00013699,2]
[401304443,1768120242521,-500.0,0.00013699,2]
[401304444,1768120242531,-500.0,0.00013699,2]
[401304445,1768120242541,-500.93038909,0.00013699,2]
[401304446,1768120242551,-500.0,0.00013699,2]
[401304447,1768120242561,-250.0,0.00013699,2]
[401304448,1768120242571,-500.0,0.00013699,2]
[401304449,1768120242581,-500.0,0.00013699,2]
[401304450,1768120242591,-500.0,0.00013699,2]
[401304451,1768120242601,-500.0,0.00013699,2]
[401304452,1768120242610,-500.0,0.00013699,2]
[401304453,1768120242619,-500.0,0.00013699,2]
[401304454,1768120242629,-500.0,0.00013699,2]
[401304455,1768120242638,-500.31275461,0.00013699,2]
[401304456,1768120242647,-500.0,0.00013699,2]
[401304457,1768120242657,-413.61388111,0.00013699,2]
[401304458,1768120242667,-500.0,0.00013699,2]
[401304459,1768120242677,-500.0,0.00013699,2]
[401304460,1768120242686,-504.31837873,0.00013699,2]
[401304461,1768120242696,-500.0,0.00013699,2]
[401304462,1768120242706,-500.0,0.00013699,2]
[401304463,1768120242716,-500.0,0.00013699,2]
[401304464,1768120242726,-500.0,0.00013699,2]
[401304465,1768120242735,-500.0,0.00013699,2]
[401304466,1768120242745,-500.0,0.00013699,2]
[401304467,1768120242755,-500.0,0.00013699,2]
[401304468,1768120242766,-500.0,0.00013699,2]
[401304469,1768120242776,-500.0,0.00013699,2]
[401304470,1768120242786,-500.0,0.00013699,2]
[401304471,1768120242796,-366.95119537,0.00013699,2]
[401304472,1768120242806,-500.0,0.00013699,2]
[401304473,1768120242815,-500.0,0.00013699,2]
[401304474,1768120242824,-268.13097792,0.00013699,2]
[401304475,1768120242834,-500.0,0.00013699,2]
[401304476,1768120242843,-500.0,0.00013699,2]
[401304477,1768120242852,-345.73139261,0.00013699,2]
[401304478,1768120242862,-500.0,0.00013699,2]
[401304479,1768120242871,-500.0,0.00013699,2]
[401304480,1768120242881,-500.0,0.00013699,2]
[401304481,1768120242891,-500.0,0.00013699,2]
[401304482,1768120242900,-500.0,0.00013699,2]
[401304483,1768120242910,-501.32276914,0.00013699,2]
[401304484,1768120242919,-500.0,0.00013699,2]
[401304485,1768120242928,-441.79967602,0.00013699,2]
[401304487,1768120242938,-500.0,0.00013699,2]
[401304488,1768120242947,-500.0,0.00013699,2]
[401304489,1768120242957,-500.0,0.00013699,2]
[401304490,1768120242967,-500.0,0.00013699,2]
[401304491,1768120242976,-500.0,0.00013699,2]
[401304492,1768120242985,-500.0,0.00013699,2]
[401304493,1768120242994,-500.0,0.00013699,2]
[401304494,1768120243003,-295.9151759,0.00013699,2]
[401304495,1768120243013,-500.0,0.00013699,2]
[401304496,1768120243022,-500.0,0.00013699,2]
[401304497,1768120243031,-578.7,0.000137,2]
[401304498,1768120243040,-175.84,0.000137,2]
[401304499,1768120243049,-151.0,0.000138,2]
[401304500,1768120243058,-332.80957177,0.00013803,2]
[401304501,1768120243068,-178.09775665,0.00013821,2]
[401304502,1768120243076,-1000.0,0.00013821,2]
[401304503,1768120243085,-501.6206004,0.00013821,2]
[401304504,1768120243095,-1002.2053155,0.00013821,2]
[401304505,1768120243105,-502.34729237,0.00013821,2]
[401304506,1768120243114,-1000.0,0.00013821,2]
[401304507,1768120243123,-1000.0,0.00013821,2]
[401304508,1768120243132,-1000.0,0.00013821,2]
[401304509,1768120243141,-1000.0,0.00013821,2]
[401304510,1768120243150,-1000.0,0.00013821,2]
[401304511,1768120243160,-1000.0,0.00013821,2]
[401304512,1768120243169,-1000.0,0.00013821,2]
[401304513,1768120243178,-1000.0,0.00013821,2]
[401304514,1768120243188,-1000.0,0.00013821,2]
[401304515,1768120243197,-1000.0,0.00013821,2]
[401304516,1768120243207,-1000.0,0.00013821,2]
[401304517,1768120243216,-1000.0,0.00013821,2]
[401304518,1768120243225,-506.38443798,0.00013821,2]
[401304519,1768120243235,-1046.83647191,0.00013821,2]
[401304520,1768120243244,-1000.0,0.00013821,2]
[401304521,1768120243254,-1000.0,0.00013821,2]
[401304522,1768120243263,-1113.91769968,0.00013821,2]
[401304523,1768120243272,-1000.0,0.00013821,2]
[401304524,1768120243281,-1000.0,0.00013821,2]
[401304525,1768120243290,-1000.0,0.00013821,2]
[401304526,1768120243306,-1000.0,0.00013821,2]
[401304527,1768120243319,-1000.0,0.00013821,2]
[401304528,1768120243329,-1000.0,0.00013821,2]
[401304529,1768120243338,-1000.0,0.00013821,2]
[401304530,1768120243347,-1000.0,0.00013821,2]
[401304531,1768120243357,-1000.0,0.00013821,2]
[401304532,1768120243366,-1000.0,0.00013821,2]
[401304533,1768120243376,-1000.0,0.00013821,2]
[401304534,1768120243386,-1000.0,0.00013821,2]
[401304535,1768120243397,-1000.0,0.00013821,2]
[401304536,1768120243406,-1000.0,0.00013821,2]
[401304537,1768120243415,-877.75810228,0.00013821,2]
[401304538,1768120243424,-1002.56714759,0.00013821,2]
[401304539,1768120243433,-973.2526551,0.00013821,2]
[401304540,1768120243443,-1000.0,0.00013821,2]
[401304541,1768120243452,-500.0,0.00013836,2]
[401304542,1768120243460,-500.0,0.00013973,2]
[401304543,1768120243470,-152.71668528,0.00014016,2]
[401304544,1768120243479,-869.39240976,0.00014036,2]
[401304545,1768120243488,-500.0,0.0001411,2]
[401304546,1768120243497,-151.0,0.000142,2]
[401304547,1768120243506,-578.7,0.000142,2]
[401304548,1768120243515,-175.84,0.000142,2]
[401304549,1768120243524,-600.0,0.00014221,2]
[401304550,1768120243533,-875.35271766,0.00014247,2]
[401304551,1768120243543,-1000.0,0.00014247,2]
[401304552,1768120243552,-1000.0,0.00014247,2]
[401304553,1768120243561,-1000.0,0.00014247,2]
[401304554,1768120243570,-1000.0,0.00014247,2]
[401304555,1768120243580,-1000.0,0.00014247,2]
[401304556,1768120243589,-1000.0,0.00014247,2]
[401304557,1768120243598,-283.3787305,0.00014247,2]
[401304558,1768120243607,-1000.0,0.00014247,2]
[401304559,1768120243616,-1000.0,0.00014247,2]
[401304560,1768120243627,-1001.8641087,0.00014247,2]
[401304561,1768120243727,-171.67593478,0.00014247,2]
[401304562,1768120243737,-1002.38932755,0.00014247,2]
[401304563,1768120243748,-1000.0,0.00014247,2]
[401304564,1768120243757,-1000.0,0.00014247,2]
[401304565,1768120243767,-469.53593685,0.00014247,2]
[401304566,1768120243775,-661.478767,0.00014247,2]
[401304567,1768120243784,-1000.0,0.00014247,2]
[401304568,1768120243793,-1000.0,0.00014247,2]
[401304569,1768120243802,-1000.0,0.00014247,2]
[401304570,1768120243812,-1000.0,0.00014247,2]
[401304571,1768120243822,-1000.0,0.00014247,2]
[401304572,1768120243832,-1000.0,0.00014247,2]
[401304573,1768120243841,-1000.0,0.00014247,2]
[401304574,1768120243850,-1029.61129365,0.00014247,2]
[401304575,1768120243860,-1000.0,0.00014247,2]
[401304576,1768120243872,-1000.62599215,0.00014247,2]
[401304577,1768120243883,-1003.14554213,0.00014247,2]
[401304578,1768120243894,-1000.0,0.00014247,2]
[401304579,1768120243905,-1000.0,0.00014247,2]
[401304580,1768120243918,-313.64870907,0.00014247,2]
[401304581,1768120243930,-1000.0,0.00014247,2]
[401304582,1768120243941,-1000.0,0.00014247,2]
[401304583,1768120243953,-1000.0,0.00014247,2]
[401304584,1768120243964,-1000.0,0.00014247,2]
[401304585,1768120243974,-1000.0,0.00014247,2]
[401304586,1768120243986,-505.42705469,0.00014247,2]
[401304587,1768120243999,-1000.0,0.00014247,2]
[401304588,1768120244008,-1000.0,0.00014247,2]
[401304589,1768120244019,-500.0,0.00014247,2]
[401304590,1768120244030,-1000.0,0.00014247,2]
[401304591,1768120244040,-500.0,0.00014247,2]
[401304592,1768120244051,-1000.0,0.00014247,2]
[401304593,1768120244060,-1000.0,0.00014247,2]
[401304594,1768120244069,-1000.0,0.00014247,2]
[401304595,1768120244079,-638.41119879,0.00014247,2]
[401304596,1768120244088,-443.77041137,0.00014247,2]
[401304597,1768120244098,-1000.0,0.00014247,2]
[401304598,1768120244107,-1000.0,0.00014247,2]
[401304601,1768120244117,-1000.0,0.00014247,2]
[401304603,1768120244126,-1000.0,0.00014247,2]
[401304604,1768120244135,-1000.0,0.00014247,2]
[401304607,1768120244144,-1000.0,0.00014247,2]
[401304610,1768120244154,-152.72644825,0.00014247,2]
[401304612,1768120244163,-793.78310386,0.00014368,2]
[401304614,1768120244172,-1512.80470062,0.00014368,2]
[401304615,1768120244181,-1500.0,0.00014368,2]
[401304616,1768120244190,-323.03430659,0.00014368,2]
[401304617,1768120244199,-1500.0,0.00014368,2]
[401304618,1768120244208,-1500.0,0.00014368,2]
[401304619,1768120244218,-1500.0,0.00014368,2]
[401304620,1768120244227,-1500.0,0.00014368,2]
[401304621,1768120244236,-1500.0,0.00014368,2]
[401304622,1768120244245,-554.02767991,0.00014368,2]
[401304623,1768120244255,-1500.0,0.00014368,2]
[401304624,1768120244264,-1500.0,0.00014368,2]
[401304625,1768120244273,-500.80134157,0.00014368,2]
[401304626,1768120244283,-1500.0,0.00014368,2]
[401304627,1768120244292,-1500.0,0.00014368,2]
[401304628,1768120244301,-1500.0,0.00014368,2]
[401304629,1768120244311,-500.0,0.00014368,2]
[401304630,1768120244321,-1500.0,0.00014368,2]
[401304631,1768120244331,-168.36851892,0.00014368,2]
[401304632,1768120244340,-263.96834089,0.00014368,2]
[401304633,1768120244349,-1500.0,0.00014368,2]
[401304634,1768120244367,-1500.0,0.00014368,2]
[401304635,1768120244377,-1500.0,0.00014368,2]
[401304636,1768120244387,-1500.0,0.00014368,2]
[401304637,1768120244397,-223.48736773,0.00014368,2]
[401304638,1768120244406,-500.0,0.00014368,2]
[401304639,1768120244415,-1500.0,0.00014368,2]
[401304640,1768120244424,-500.0,0.00014368,2]
[401304641,1768120244434,-1500.0,0.00014368,2]
[401304642,1768120244443,-1000.0,0.00014376,2]
[401304643,1768120244454,-791.0,0.00014376,2]
[401304644,1768120244463,-5000.0,0.0001451,2]
[401304645,1768120244473,-1208.67496704,0.00014695,2]
[401304646,1768120244482,-578.7,0.000147,2]
[401304647,1768120244492,-175.84,0.000147,2]
[401304648,1768120244501,-100000.0,0.00014736,2]
[401304649,1768120244511,-900.0,0.00014768,2]
[401304650,1768120244520,-1514.12213244,0.00014795,2]
[401304651,1768120244529,-155.09397851,0.00014795,2]
[401304652,1768120244538,-839.58703801,0.00014795,2]
[401304653,1768120244547,-488.64589349,0.00014795,2]
[401304654,1768120244556,-1500.0,0.00014795,2]
[401304655,1768120244566,-1500.0,0.00014795,2]
[401304656,1768120244575,-1640.95571878,0.00014795,2]
[401304657,1768120244584,-602.53259662,0.00014795,2]
[401304658,1768120244593,-1500.0,0.00014795,2]
[401304659,1768120244603,-1499.24471264,0.00014795,2]
[401304660,1768120244612,-1500.0,0.00014795,2]
[401304661,1768120244622,-674.14847626,0.00014795,2]
[401304662,1768120244632,-501.33075681,0.00014795,2]
[401304663,1768120244641,-1500.0,0.00014795,2]
[401304664,1768120244651,-1640.84533084,0.00014795,2]
[401304665,1768120244660,-514.14829436,0.00014795,2]
[401304666,1768120244669,-1500.0,0.00014795,2]
[401304667,1768120244679,-661.95893033,0.00014795,2]
[401304668,1768120244688,-1000.0,0.00014795,2]
[401304669,1768120244698,-1236.28209818,0.00014795,2]
[401304670,1768120244707,-1001.3782102,0.00014795,2]
[401304671,1768120244716,-503.75899236,0.00014795,2]
[401304672,1768120244727,-1500.0,0.00014795,2]
[401304673,1768120244736,-500.76011771,0.00014795,2]
[401304674,1768120244746,-1500.0,0.00014795,2]
[401304675,1768120244755,-1608.00999349,0.00014795,2]
[401304676,1768120244765,-788.05151213,0.00014795,2]
[401304677,1768120244774,-1500.0,0.00014795,2]
[401304678,1768120244784,-1482.84709438,0.00014795,2]
[401304679,1768120244794,-1500.0,0.00014795,2]
[401304680,1768120244803,-1003.80919542,0.00014795,2]
[401304681,1768120244812,-1516.76085072,0.00014795,2]
[401304682,1768120244821,-1500.0,0.00014795,2]
[401304683,1768120244831,-304.84096496,0.00014795,2]
[401304684,1768120244841,-1500.0,0.00014795,2]
[401304685,1768120244850,-2000.0,0.00014916,2]
[401304686,1768120244859,-2000.0,0.00014916,2]
[401304687,1768120244868,-1510.52551,0.00014916,2]
[401304688,1768120244877,-1001.19360014,0.00014916,2]
[401304689,1768120244887,-2000.0,0.00014916,2]